fUSD/lending_fUSD_20250125
["ID","MTS","AMOUNT","RATE_DAILY","PERIOD"]
[350342120,1737804652058,-500.0,0.00016986,2]
[350342121,1737804652186,-500.0,0.00017123,2]
[350342122,1737804652195,-500.0,0.00017123,2]
[350342123,1737804652205,-500.0,0.0001726,2]
[350342124,1737804652215,-500.0,0.00017397,2]
[350342125,1737804652223,-500.0,0.00017534,2]
[350342126,1737804652232,-500.0,0.00017671,2]
[350342127,1737804652241,-500.0,0.00017808,2]
[350342128,1737804652250,-150.0,0.00019247,2]
[350342129,1737804652259,-638.0,0.0001927,2]
[350342130,1737804652267,-150.0,0.00019506,2]
[350342131,1737804652276,-150.0,0.00019637,2]
[350342132,1737804652285,-150.0,0.00019748,2]
[350342133,1737804652295,-500.0,0.00019998,2]
[350342134,1737804652303,-838.87,0.00019998,2]
[350342135,1737804652312,-500.0,0.00019998,2]
[350342136,1737804652322,-665.08,0.00019998,2]
[350342137,1737804652331,-500.0,0.00019998,2]
[350342138,1737804652339,-463.98470458,0.00019999,2]
[350342139,1737804652348,-355.39930844,0.00019999,2]
[350342140,1737804652357,-677186.76268412,0.0002,2]
[350342146,1737805519156,999.99999999,0.00022,30]
[350342147,1737805537112,-206.13,0.00010137,2]
[350342148,1737805537140,-172.24,0.00012329,2]
[350342149,1737805537168,-172.23,0.00012808,2]
[350342150,1737805537193,-477.688095,0.0001353,2]
[350342151,1737805537218,-3654.11638442,0.00013598,2]
[350342152,1737805542089,-998.49207221,0.00013598,2]
[350342153,1737805611087,-250.0,0.00012642,2]
[350342154,1737805611108,-4.92813642,0.00013681,2]
[350342155,1737805638095,-1343.55365157,0.00013681,2]
[350342156,1737805638116,-150.0,0.00013753,2]
[350342157,1737805638138,-1077.21,0.00013767,2]
[350342158,1737805638159,-326.11,0.00013781,7]
[350342159,1737805638179,-254.92687155,0.00013781,7]
[350342160,1737805638201,-299.66816732,0.00013781,7]
[350342161,1737805649124,-319.27823937,0.00013681,2]
[350342166,1737805757086,-163.65,0.00010137,2]
[350342167,1737805757109,-528.03986453,0.00013767,2]
[350342168,1737805757132,-1302.19575999,0.00013781,7]
[350342169,1737805757153,-2756.74,0.00015551,2]
[350342170,1737805757175,-3868.71961498,0.00015605,2]
[350342171,1737805757198,-250.0,0.00015605,2]
[350342172,1737805757220,-250.0,0.00015741,2]
[350342173,1737805757242,-250.0,0.00015835,2]
[350342174,1737805757275,-177.81,0.00015907,2]
[350342175,1737805757298,-1000.0,0.00016029,2]
[350342176,1737805757320,-1077.21,0.00016031,2]
[350342177,1737805757347,-608.01067354,0.00016238,2]
[350342178,1737805757371,-310.0,0.00016287,2]
[350342179,1737805757393,-23900.0,0.00016324,2]
[350342180,1737805757414,-300.0,0.00016337,2]
[350342181,1737805757436,-171.23751404,0.00016338,2]
[350342182,1737805757457,-1975.36624694,0.00016338,2]
[350342183,1737805757481,-16553.82653837,0.00016338,2]
[350342186,1737805831512,-200.35,0.00012796,2]
[350342187,1737805831522,-277.96588386,0.00015922,2]
[350342188,1737805831580,-73.11411614,0.00015922,2]
[350342189,1737805831590,-2368.14626349,0.00015959,2]
[350342190,1737805831601,-3621.64373651,0.00015959,2]
[350342191,1737805831611,-193.44,0.00016014,2]
[350342192,1737805831620,-6589.55015889,0.00016338,2]
[350342193,1737805831630,-53643.32426163,0.00016338,2]
[350342194,1737805831640,-3875.5264,0.00016338,2]
[350342195,1737805831649,-4027.7244,0.00016338,2]
[350342196,1737805831659,-5921.0923,0.00016338,2]
[350342197,1737805831669,-1000.0,0.00016338,2]
[350342198,1737805831679,-1407.2812,0.00016338,2]
[350342199,1737805831688,-5000.0,0.00016338,2]
[350342200,1737805831698,-1211.99,0.00016428,2]
[350342201,1737805831707,-169.77865788,0.00016437,2]
[350342202,1737805831717,-156.26040382,0.00016437,2]
[350342203,1737805831727,-159.12686797,0.00016437,2]
[350342204,1737805831737,-500.0,0.00016438,2]
[350342205,1737805831747,-500.0,0.00016438,2]
[350342206,1737805831756,-510.5576074,0.00016438,2]
[350342207,1737805831766,-500.0,0.00016438,2]
[350342208,1737805831775,-500.0,0.00016438,2]
[350342209,1737805831785,-500.0,0.00016438,2]
[350342210,1737805831794,-501.60597058,0.00016438,2]
[350342211,1737805831803,-500.0,0.00016438,2]
[350342212,1737805831813,-500.0,0.00016438,2]
[350342213,1737805831822,-500.0,0.00016438,2]
[350342214,1737805831832,-500.0,0.00016438,2]
[350342215,1737805831841,-500.0,0.00016438,2]
[350342216,1737805831850,-511.6635959,0.00016438,2]
[350342217,1737805831861,-500.0,0.00016438,2]
[350342219,1737805831871,-500.0,0.00016438,2]
[350342221,1737805831880,-500.0,0.00016438,2]
[350342223,1737805831890,-500.0,0.00016438,2]
[350342225,1737805831900,-257.66628731,0.00016438,2]
[350342227,1737805831909,-500.0,0.00016438,2]
[350342229,1737805831919,-527.87054714,0.00016438,2]
[350342231,1737805831928,-501.96719974,0.00016438,2]
[350342233,1737805831937,-511.89689085,0.00016438,2]
[350342235,1737805831946,-500.0,0.00016438,2]
[350342237,1737805831956,-500.0,0.00016438,2]
[350342238,1737805831967,-505.37698642,0.00016438,2]
[350342239,1737805831977,-500.0,0.00016438,2]
[350342240,1737805831986,-500.0,0.00016438,2]
[350342241,1737805831996,-501.99464345,0.00016438,2]
[350342242,1737805832005,-504.04335432,0.00016438,2]
[350342243,1737805832014,-500.0,0.00016438,2]
[350342244,1737805832024,-502.6244877,0.00016438,2]
[350342245,1737805832033,-505.01201485,0.00016438,2]
[350342246,1737805832042,-500.0,0.00016438,2]
[350342248,1737805832053,-503.32335353,0.00016438,2]
[350342251,1737805832062,-504.28191558,0.00016438,2]
[350342254,1737805832071,-500.0,0.00016438,2]
[350342255,1737805832080,-646.21478599,0.00016438,2]
[350342257,1737805832090,-500.0,0.00016438,2]
[350342259,1737805832100,-500.0,0.00016438,2]
[350342262,1737805832110,-500.0,0.00016438,2]
[350342264,1737805832120,-500.0,0.00016438,2]
[350342266,1737805832129,-254.34994653,0.00016438,2]
[350342268,1737805832139,-500.0,0.00016438,2]
[350342270,1737805832148,-500.0,0.00016438,2]
[350342272,1737805832159,-284.95554845,0.00016438,2]
[350342274,1737805832167,-504.32274813,0.00016438,2]
[350342276,1737805832177,-503.41921683,0.00016438,2]
[350342278,1737805832185,-326.84143648,0.00016438,2]
[350342280,1737805832195,-500.0,0.00016438,2]
[350342282,1737805832204,-500.0,0.00016438,2]
[350342284,1737805832213,-502.17654805,0.00016438,2]
[350342286,1737805832222,-500.0,0.00016438,2]
[350342288,1737805832232,-500.0,0.00016438,2]
[350342290,1737805832242,-500.0,0.00016438,2]
[350342292,1737805832251,-510.71570762,0.00016438,2]
[350342294,1737805832261,-500.0,0.00016438,2]
[350342295,1737805832270,-500.0,0.00016438,2]
[350342297,1737805832279,-500.0,0.00016438,2]
[350342299,1737805832288,-519.66424644,0.00016438,2]
[350342301,1737805832297,-500.0,0.00016438,2]
[350342303,1737805832306,-503.97590868,0.00016438,2]
[350342305,1737805832315,-213.30772804,0.00016438,2]
[350342307,1737805832324,-500.0,0.00016438,2]
[350342309,1737805832337,-500.0,0.00016438,2]
[350342310,1737805832347,-504.98725922,0.00016438,2]
[350342311,1737805832356,-500.0,0.00016438,2]
[350342312,1737805832365,-187.04934975,0.00016438,2]
[350342313,1737805832374,-500.0,0.00016438,2]
[350342314,1737805832384,-363.55995718,0.00016438,2]
[350342315,1737805832394,-500.0,0.00016438,2]
[350342316,1737805832404,-500.0,0.00016438,2]
[350342317,1737805832415,-296.50661626,0.00016438,2]
[350342318,1737805832424,-500.0,0.00016438,2]
[350342319,1737805832433,-500.0,0.00016438,2]
[350342320,1737805832442,-507.90813339,0.00016438,2]
[350342321,1737805832450,-500.0,0.00016438,2]
[350342322,1737805832459,-501.82590325,0.00016438,2]
[350342323,1737805832468,-500.0,0.00016438,2]
[350342324,1737805832478,-500.0,0.00016438,2]
[350342325,1737805832487,-500.0,0.00016438,2]
[350342326,1737805832495,-500.0,0.00016438,2]
[350342327,1737805832505,-503.99076936,0.00016438,2]
[350342328,1737805832514,-500.0,0.00016438,2]
[350342329,1737805832523,-500.0,0.00016438,2]
[350342330,1737805832532,-500.0,0.00016438,2]
[350342331,1737805832541,-500.0,0.00016438,2]
[350342332,1737805832550,-500.0,0.00016438,2]
[350342333,1737805832559,-500.0,0.00016438,2]
[350342334,1737805832571,-297.75202627,0.00016438,2]
[350342335,1737805832580,-500.0,0.00016438,2]
[350342336,1737805832591,-500.0,0.00016438,2]
[350342337,1737805832600,-500.0,0.00016438,2]
[350342338,1737805832609,-500.0,0.00016438,2]
[350342339,1737805832619,-500.0,0.00016438,2]
[350342340,1737805832629,-500.0,0.00016438,2]
[350342341,1737805832640,-500.0,0.00016438,2]
[350342342,1737805832649,-500.0,0.00016438,2]
[350342343,1737805832660,-508.58057986,0.00016438,2]
[350342344,1737805832670,-500.0,0.00016438,2]
[350342345,1737805832679,-500.0,0.00016438,2]
[350342346,1737805832688,-503.08648041,0.00016438,2]
[350342347,1737805832697,-500.0,0.00016438,2]
[350342348,1737805832707,-464.50217644,0.00016438,2]
[350342349,1737805832716,-500.0,0.00016438,2]
[350342350,1737805832724,-500.0,0.00016438,2]
[350342351,1737805832735,-500.0,0.00016438,2]
[350342352,1737805832744,-500.0,0.00016438,2]
[350342353,1737805832754,-537.28287975,0.00016438,2]
[350342354,1737805832763,-500.0,0.00016438,2]
[350342355,1737805832772,-500.0,0.00016438,2]
[350342356,1737805832781,-500.0,0.00016438,2]
[350342357,1737805832790,-500.0,0.00016438,2]
[350342358,1737805832800,-500.0,0.00016438,2]
[350342359,1737805832809,-500.0,0.00016438,2]
[350342360,1737805832819,-500.0,0.00016438,2]
[350342361,1737805832827,-500.0,0.00016438,2]
[350342362,1737805832837,-503.63413195,0.00016438,2]
[350342363,1737805832846,-500.0,0.00016438,2]
[350342364,1737805832855,-500.0,0.00016438,2]
[350342365,1737805832864,-505.55679695,0.00016438,2]
[350342366,1737805832873,-574.23338933,0.00016438,2]
[350342367,1737805832882,-500.0,0.00016438,2]
[350342368,1737805832891,-500.0,0.00016438,2]
[350342369,1737805832900,-502.34855175,0.00016438,2]
[350342370,1737805832910,-500.0,0.00016438,2]
[350342371,1737805832919,-500.0,0.00016438,2]
[350342372,1737805832928,-500.0,0.00016438,2]
[350342373,1737805832938,-500.0,0.00016438,2]
[350342374,1737805832947,-500.0,0.00016438,2]
[350342375,1737805832957,-500.0,0.00016438,2]
[350342376,1737805832967,-500.0,0.00016438,2]
[350342377,1737805832975,-500.0,0.00016438,2]
[350342378,1737805832987,-500.0,0.00016438,2]
[350342379,1737805832996,-500.0,0.00016438,2]
[350342380,1737805833006,-500.0,0.00016438,2]
[350342381,1737805833016,-500.0,0.00016438,2]
[350342382,1737805833026,-508.28450382,0.00016438,2]
[350342383,1737805833036,-512.37289598,0.00016438,2]
[350342384,1737805833047,-500.0,0.00016438,2]
[350342385,1737805833057,-506.38066131,0.00016438,2]
[350342386,1737805833067,-500.0,0.00016438,2]
[350342387,1737805833077,-505.07032216,0.00016438,2]
[350342388,1737805833087,-505.8804449,0.00016438,2]
[350342389,1737805833097,-500.0,0.00016438,2]
[350342390,1737805833108,-504.28528313,0.00016438,2]
[350342391,1737805833118,-624.17119901,0.00016438,2]
[350342392,1737805833128,-500.0,0.00016438,2]
[350342393,1737805833139,-500.0,0.00016438,2]
[350342394,1737805833150,-505.60846736,0.00016438,2]
[350342395,1737805833172,-505.63674471,0.00016438,2]
[350342396,1737805833182,-500.0,0.00016438,2]
[350342397,1737805833192,-500.0,0.00016438,2]
[350342398,1737805833202,-500.0,0.00016438,2]
[350342399,1737805833212,-500.0,0.00016438,2]
[350342400,1737805833223,-500.0,0.00016438,2]
[350342401,1737805833235,-503.49363123,0.00016438,2]
[350342402,1737805833245,-500.0,0.00016438,2]
[350342403,1737805833256,-500.0,0.00016438,2]
[350342404,1737805833267,-500.0,0.00016438,2]
[350342405,1737805833278,-500.0,0.00016438,2]
[350342406,1737805833288,-500.0,0.00016438,2]
[350342407,1737805833299,-500.0,0.00016438,2]
[350342408,1737805833310,-504.61543746,0.00016438,2]
[350342409,1737805833320,-500.0,0.00016438,2]
[350342410,1737805833331,-500.0,0.00016438,2]
[350342411,1737805833344,-500.0,0.00016438,2]
[350342412,1737805833354,-500.0,0.00016438,2]
[350342413,1737805833364,-500.0,0.00016438,2]
[350342414,1737805833374,-500.0,0.00016438,2]
[350342415,1737805833384,-500.0,0.00016438,2]
[350342416,1737805833394,-500.0,0.00016438,2]
[350342417,1737805833404,-500.0,0.00016438,2]
[350342418,1737805833415,-500.0,0.00016438,2]
[350342419,1737805833424,-500.0,0.00016438,2]
[350342420,1737805833434,-500.0,0.00016438,2]
[350342421,1737805833445,-500.0,0.00016438,2]
[350342422,1737805833455,-500.0,0.00016438,2]
[350342423,1737805833464,-500.0,0.00016438,2]
[350342424,1737805833475,-500.0,0.00016438,2]
[350342425,1737805833486,-500.0,0.00016438,2]
[350342426,1737805833496,-500.0,0.00016438,2]
[350342427,1737805833506,-500.0,0.00016438,2]
[350342428,1737805833516,-500.0,0.00016438,2]
[350342429,1737805833708,-500.0,0.00016438,2]
[350342430,1737805833719,-527.02990747,0.00016438,2]
[350342431,1737805833730,-500.0,0.00016438,2]
[350342432,1737805833740,-500.0,0.00016438,2]
[350342433,1737805833751,-500.0,0.00016438,2]
[350342434,1737805833761,-500.0,0.00016438,2]
[350342435,1737805833771,-500.0,0.00016438,2]
[350342436,1737805833781,-500.0,0.00016438,2]
[350342437,1737805833791,-500.0,0.00016438,2]
[350342438,1737805833800,-500.0,0.00016438,2]
[350342439,1737805833810,-500.0,0.00016438,2]
[350342440,1737805833820,-500.0,0.00016438,2]
[350342441,1737805833830,-500.0,0.00016438,2]
[350342442,1737805833839,-500.0,0.00016438,2]
[350342443,1737805833849,-337.095877,0.00016438,2]
[350342444,1737805833859,-500.0,0.00016438,2]
[350342445,1737805833870,-500.0,0.00016438,2]
[350342446,1737805833880,-508.63432751,0.00016438,2]
[350342447,1737805833891,-500.0,0.00016438,2]
[350342448,1737805833902,-513.15125223,0.00016438,2]
[350342449,1737805833911,-500.0,0.00016438,2]
[350342450,1737805833922,-500.0,0.00016438,2]
[350342451,1737805833932,-511.73459201,0.00016438,2]
[350342452,1737805833943,-500.0,0.00016438,2]
[350342453,1737805833953,-500.0,0.00016438,2]
[350342454,1737805833963,-500.0,0.00016438,2]
[350342455,1737805833974,-502.89394541,0.00016438,2]
[350342456,1737805833985,-500.0,0.00016438,2]
[350342457,1737805833996,-500.0,0.00016438,2]
[350342458,1737805834007,-245.26318771,0.00016438,2]
[350342459,1737805834018,-500.0,0.00016438,2]
[350342460,1737805834028,-517.22524702,0.00016438,2]
[350342461,1737805834038,-500.0,0.00016438,2]
[350342462,1737805834048,-500.0,0.00016438,2]
[350342463,1737805834058,-500.0,0.00016438,2]
[350342464,1737805834069,-500.0,0.00016438,2]
[350342465,1737805834079,-500.0,0.00016438,2]
[350342466,1737805834089,-500.0,0.00016438,2]
[350342467,1737805834099,-500.0,0.00016438,2]
[350342468,1737805834109,-506.63981964,0.00016438,2]
[350342469,1737805834119,-502.64606843,0.00016438,2]
[350342470,1737805834128,-500.0,0.00016438,2]
[350342471,1737805834138,-500.0,0.00016438,2]
[350342472,1737805834147,-300.60815773,0.00016438,2]
[350342473,1737805834158,-500.0,0.00016438,2]
[350342474,1737805834167,-500.0,0.00016438,2]
[350342475,1737805834177,-500.0,0.00016438,2]
[350342476,1737805834187,-500.0,0.00016438,2]
[350342477,1737805834197,-500.0,0.00016438,2]
[350342478,1737805834207,-500.0,0.00016438,2]
[350342479,1737805834217,-500.0,0.00016438,2]
[350342480,1737805834227,-500.0,0.00016438,2]
[350342481,1737805834236,-896.13963,0.00016438,2]
[350342482,1737805834246,-500.0,0.00016438,2]
[350342483,1737805834256,-500.0,0.00016438,2]
[350342484,1737805834266,-500.0,0.00016438,2]
[350342485,1737805834275,-500.0,0.00016438,2]
[350342486,1737805834285,-500.0,0.00016438,2]
[350342487,1737805834295,-500.0,0.00016438,2]
[350342488,1737805834305,-500.83773063,0.00016438,2]
[350342489,1737805834316,-500.0,0.00016438,2]
[350342490,1737805834326,-500.0,0.00016438,2]
[350342491,1737805834338,-501.79484509,0.00016438,2]
[350342492,1737805834350,-504.51585519,0.00016438,2]
[350342493,1737805834360,-185.69038356,0.00016438,2]
[350342494,1737805834371,-500.0,0.00016438,2]
[350342495,1737805834380,-500.3072572,0.00016438,2]
[350342496,1737805834390,-500.0,0.00016438,2]
[350342497,1737805834399,-500.0,0.00016438,2]
[350342498,1737805834409,-500.0,0.00016438,2]
[350342499,1737805834419,-500.0,0.00016438,2]
[350342500,1737805834428,-509.22876269,0.00016438,2]
[350342501,1737805834438,-500.0,0.00016438,2]
[350342502,1737805834448,-500.0,0.00016438,2]
[350342503,1737805834458,-500.0,0.00016438,2]
[350342504,1737805834466,-500.0,0.00016438,2]
[350342505,1737805834475,-500.0,0.00016438,2]
[350342506,1737805834486,-500.0,0.00016438,2]
[350342507,1737805834495,-500.0,0.00016438,2]
[350342508,1737805834506,-500.0,0.00016438,2]
[350342509,1737805834515,-500.0,0.00016438,2]
[350342510,1737805834524,-506.105204,0.00016438,2]
[350342511,1737805834534,-500.0,0.00016438,2]
[350342512,1737805834543,-500.0,0.00016438,2]
[350342513,1737805834553,-504.07623943,0.00016438,2]
[350342514,1737805834562,-500.0,0.00016438,2]
[350342515,1737805834571,-500.0,0.00016438,2]
[350342516,1737805834580,-500.0,0.00016438,2]
[350342517,1737805834589,-500.0,0.00016438,2]
[350342518,1737805834598,-500.0,0.00016438,2]
[350342519,1737805834608,-549.57653557,0.00016438,2]
[350342520,1737805834617,-500.0,0.00016438,2]
[350342521,1737805834626,-503.48475093,0.00016438,2]
[350342522,1737805834635,-500.0,0.00016438,2]
[350342523,1737805834645,-500.0,0.00016438,2]
[350342524,1737805834654,-500.0,0.00016438,2]
[350342525,1737805834663,-500.0,0.00016438,2]
[350342526,1737805834672,-501.36992626,0.00016438,2]
[350342527,1737805834681,-505.2807723,0.00016438,2]
[350342528,1737805834691,-500.0,0.00016438,2]
[350342529,1737805834700,-500.0,0.00016438,2]
[350342530,1737805834709,-503.08877357,0.00016438,2]
[350342531,1737805834718,-500.0,0.00016438,2]
[350342532,1737805834727,-500.0,0.00016438,2]
[350342533,1737805834737,-500.0,0.00016438,2]
[350342534,1737805834746,-500.0,0.00016438,2]
[350342535,1737805834755,-500.0,0.00016438,2]
[350342536,1737805834764,-500.0,0.00016438,2]
[350342537,1737805834773,-503.70329574,0.00016438,2]
[350342538,1737805834783,-500.0,0.00016438,2]
[350342539,1737805834792,-300.0,0.00016438,2]
[350342540,1737805834801,-500.0,0.00016438,2]
[350342541,1737805834810,-500.0,0.00016438,2]
[350342542,1737805834819,-505.23454424,0.00016438,2]
[350342543,1737805834828,-500.0,0.00016438,2]
[350342544,1737805834837,-500.0,0.00016438,2]
[350342545,1737805834846,-500.0,0.00016438,2]
[350342546,1737805834855,-500.0,0.00016438,2]
[350342547,1737805834864,-500.0,0.00016438,2]
[350342548,1737805834873,-513.30588057,0.00016438,2]
[350342549,1737805834882,-500.0,0.00016438,2]
[350342550,1737805834891,-506.16221731,0.00016438,2]
[350342551,1737805834900,-500.0,0.00016438,2]
[350342552,1737805834909,-500.0,0.00016438,2]
[350342553,1737805834919,-500.0,0.00016438,2]
[350342554,1737805834928,-500.0,0.00016438,2]
[350342555,1737805834937,-500.0,0.00016438,2]
[350342556,1737805834946,-500.0,0.00016438,2]
[350342557,1737805834955,-500.0,0.00016438,2]
[350342558,1737805834964,-500.0,0.00016438,2]
[350342559,1737805834974,-502.25398474,0.00016438,2]
[350342560,1737805834985,-500.0,0.00016438,2]
[350342561,1737805834994,-500.0,0.00016438,2]
[350342562,1737805835003,-500.0,0.00016438,2]
[350342563,1737805835012,-500.0,0.00016438,2]
[350342564,1737805835021,-502.49399109,0.00016438,2]
[350342565,1737805835030,-498.08735128,0.00016438,2]
[350342566,1737805835039,-500.0,0.00016438,2]
[350342567,1737805835048,-500.0,0.00016438,2]
[350342568,1737805835057,-505.20846324,0.00016438,2]
[350342569,1737805835066,-500.0,0.00016438,2]
[350342570,1737805835075,-500.0,0.00016438,2]
[350342571,1737805835084,-500.0,0.00016438,2]
[350342572,1737805835093,-500.0,0.00016438,2]
[350342573,1737805835102,-500.0,0.00016438,2]
[350342574,1737805835111,-500.0,0.00016438,2]
[350342575,1737805835119,-500.0,0.00016438,2]
[350342576,1737805835128,-500.0,0.00016438,2]
[350342577,1737805835137,-500.0,0.00016438,2]
[350342578,1737805835146,-500.0,0.00016438,2]
[350342579,1737805835155,-500.0,0.00016438,2]
[350342580,1737805835164,-502.57538578,0.00016438,2]
[350342581,1737805835173,-500.0,0.00016438,2]
[350342582,1737805835183,-502.4444493,0.00016438,2]
[350342583,1737805835192,-500.0,0.00016438,2]
[350342584,1737805835201,-500.0,0.00016438,2]
[350342585,1737805835210,-500.0,0.00016438,2]
[350342586,1737805835219,-500.0,0.00016438,2]
[350342587,1737805835227,-513.63561892,0.00016438,2]
[350342588,1737805835238,-500.0,0.00016438,2]
[350342589,1737805835247,-500.0,0.00016438,2]
[350342590,1737805835257,-500.0,0.00016438,2]
[350342591,1737805835266,-500.0,0.00016438,2]
[350342592,1737805835275,-500.0,0.00016438,2]
[350342593,1737805835284,-500.0,0.00016438,2]
[350342594,1737805835294,-500.0,0.00016438,2]
[350342595,1737805835303,-500.0,0.00016438,2]
[350342596,1737805835312,-522.36983923,0.00016438,2]
[350342597,1737805835321,-526.1764775,0.00016438,2]
[350342598,1737805835333,-500.0,0.00016438,2]
[350342599,1737805835343,-500.0,0.00016438,2]
[350342600,1737805835352,-500.0,0.00016438,2]
[350342601,1737805835361,-504.25335243,0.00016438,2]
[350342602,1737805835371,-500.0,0.00016438,2]
[350342603,1737805835382,-502.07596085,0.00016438,2]
[350342604,1737805835391,-500.0,0.00016438,2]
[350342605,1737805835401,-500.0,0.00016438,2]
[350342606,1737805835411,-423.22421727,0.00016438,2]
[350342607,1737805835421,-500.0,0.00016438,2]
[350342608,1737805835431,-500.0,0.00016438,2]
[350342609,1737805835440,-503.19094552,0.00016438,2]
[350342610,1737805835449,-500.0,0.00016438,2]
[350342611,1737805835459,-500.0,0.00016438,2]
[350342612,1737805835468,-500.0,0.00016438,2]
[350342613,1737805835477,-500.32843469,0.00016438,2]
[350342614,1737805835487,-500.0,0.00016438,2]
[350342615,1737805835497,-500.0,0.00016438,2]
[350342616,1737805835506,-497.509188,0.00016438,2]
[350342617,1737805835516,-500.0,0.00016438,2]
[350342618,1737805835525,-500.0,0.00016438,2]
[350342619,1737805835534,-385.96780766,0.00016438,2]
[350342620,1737805835544,-500.0,0.00016438,2]
[350342621,1737805835553,-500.0,0.00016438,2]
[350342622,1737805835562,-500.0,0.00016438,2]
[350342623,1737805835571,-502.99602682,0.00016438,2]
[350342624,1737805835580,-500.0,0.00016438,2]
[350342625,1737805835589,-500.0,0.00016438,2]
[350342626,1737805835599,-500.0,0.00016438,2]
[350342627,1737805835608,-500.0,0.00016438,2]
[350342628,1737805835617,-500.0,0.00016438,2]
[350342629,1737805835627,-500.0,0.00016438,2]
[350342630,1737805835637,-281.08141659,0.00016438,2]
[350342631,1737805835647,-500.0,0.00016438,2]
[350342632,1737805835656,-500.0,0.00016438,2]
[350342633,1737805835666,-500.0,0.00016438,2]
[350342634,1737805835675,-216.9520197,0.00016438,2]
[350342635,1737805835685,-500.0,0.00016438,2]
[350342636,1737805835694,-505.40496278,0.00016438,2]
[350342637,1737805835704,-501.93069182,0.00016438,2]
[350342638,1737805835714,-502.41138682,0.00016438,2]
[350342639,1737805835723,-500.0,0.00016438,2]
[350342640,1737805835733,-500.0,0.00016438,2]
[350342641,1737805835743,-500.0,0.00016438,2]
[350342642,1737805835753,-500.0,0.00016438,2]
[350342643,1737805835763,-500.0,0.00016438,2]
[350342644,1737805835772,-500.0,0.00016438,2]
[350342645,1737805835782,-500.0,0.00016438,2]
[350342646,1737805835791,-503.38814756,0.00016438,2]
[350342647,1737805835801,-500.0,0.00016438,2]
[350342648,1737805835810,-500.0,0.00016438,2]
[350342649,1737805835819,-500.0,0.00016438,2]
[350342650,1737805835828,-500.0,0.00016438,2]
[350342651,1737805835838,-500.0,0.00016438,2]
[350342652,1737805835848,-500.0,0.00016438,2]
[350342653,1737805835857,-491.66669598,0.00016438,2]
[350342654,1737805835867,-500.0,0.00016438,2]
[350342655,1737805835876,-500.0,0.00016438,2]
[350342656,1737805835886,-500.0,0.00016438,2]
[350342657,1737805835896,-500.0,0.00016438,2]
[350342658,1737805835905,-500.0,0.00016438,2]
[350342659,1737805835915,-500.0,0.00016438,2]
[350342660,1737805835924,-500.0,0.00016438,2]
[350342661,1737805835934,-506.43451555,0.00016438,2]
[350342662,1737805835944,-500.0,0.00016438,2]
[350342663,1737805835953,-500.0,0.00016438,2]
[350342664,1737805835963,-500.0,0.00016438,2]
[350342665,1737805835973,-500.0,0.00016438,2]
[350342666,1737805835984,-513.07732426,0.00016438,2]
[350342667,1737805835994,-500.0,0.00016438,2]
[350342668,1737805836006,-500.0,0.00016438,2]
[350342669,1737805836017,-500.0,0.00016438,2]
[350342670,1737805836027,-501.42931675,0.00016438,2]
[350342671,1737805836038,-500.0,0.00016438,2]
[350342672,1737805836048,-500.0,0.00016438,2]